bitfinex/quotes_SOLUSD_20250108
["timestamp","ask_amount","ask_price","bid_price","bid_amount"]
[1736328968295,22.26,197.24,197.15,9.88897452]
[1736328968605,2.26,197.23,197.18,23.776884]
[1736328968814,2.26,197.22,197.18,24.53726153]
[1736328969113,2.26,197.21,197.18,24.53726153]
[1736328973824,2.26,197.21,197.18,34.42623605]
[1736328974604,2.26,197.21,197.2,23.776884]
[1736328974808,2.26,197.21,197.2,24.53716535]
[1736328976021,6.6089,197.3,197.2,24.53716535]
[1736328976204,2.26,197.29,197.2,24.53716535]
[1736328977014,2.26,197.29,197.18,0.76033704]
[1736328978128,2.26,197.29,197.19,23.776884]
[1736328980830,2.26,197.29,197.2,0.76034054]
[1736328982428,20.0,197.31,197.2,10.64931506]
[1736328982609,2.24,197.28,197.2,10.64931506]
[1736328983428,20.0,197.31,197.2,10.64931506]
[1736328983625,2.24,197.27,197.2,10.64931506]
[1736328984028,20.0,197.31,197.2,10.64931506]
[1736328984345,2.24,197.26,197.2,10.64931506]
[1736328984508,2.24,197.25,197.21,23.776884]
[1736328984703,6.4777,197.34,197.24,33.66585852]
[1736328984927,18.68465132,197.37,197.24,33.66585852]
[1736328984928,13.61805132,197.37,197.26,9.88897452]
[1736328985141,2.24,197.33,197.27,9.88897452]
[1736328985308,6.0786,197.39,197.28,23.776884]
[1736328985637,2.26,197.38,197.26,0.76007312]
[1736328986133,2.26,197.38,197.27,23.776884]
[1736328986426,7.3263,197.38,197.27,23.776884]
[1736328986633,7.3263,197.38,197.26,23.776884]
[1736328987132,7.3263,197.38,197.27,0.76010108]
[1736328987510,7.3263,197.38,197.27,10.6490756]
[1736328988623,6.0786,197.39,197.3,23.776884]
[1736328988932,2.26,197.38,197.3,23.776884]
[1736328989932,2.26,197.38,197.29,23.776884]
[1736328991122,20.0,197.36,197.25,1.629]
[1736328991727,20.0,197.36,197.21,10.64917326]
[1736328992110,5.0671,197.35,197.22,23.776884]
[1736328992539,5.0671,197.35,197.21,10.64917326]
[1736328992734,5.0671,197.35,197.22,23.776884]
[1736328992937,20.0,197.32,197.2,1.5358]
[1736328993143,2.26,197.31,197.17,82.9]
[1736328993357,2.26,197.31,197.17,83.66041572]
[1736328993635,2.26,197.31,197.17,82.9]
[1736328994234,20.0,197.27,197.18,23.776884]
[1736328994944,20.0,197.27,197.17,82.9]
[1736328995243,20.0,197.27,197.18,23.776884]
[1736328996230,5.0692,197.27,197.18,23.776884]
[1736328996422,5.0692,197.27,197.17,82.9]
[1736328996930,5.0692,197.27,197.18,23.776884]
[1736328998253,20.0,197.29,197.18,23.776884]
[1736328998419,20.0,197.27,197.18,23.776884]
[1736329002946,20.0,197.29,197.18,23.776884]
[1736329003122,20.0,197.24,197.18,23.776884]
[1736329003324,2.24,197.23,197.18,23.776884]
[1736329016776,2.24,197.22,197.18,24.53741124]
[1736329016973,2.24,197.22,197.18,23.776884]
[1736329019956,2.24,197.21,197.18,23.776884]
[1736329022455,20.0,197.28,197.18,253.6577668]
[1736329022677,2.24,197.27,197.2,23.776884]
[1736329022859,2.24,197.27,197.2,24.53722299]
[1736329023073,2.24,197.27,197.22,243.00765398]
[1736329023266,2.24,197.26,197.24,243.00765398]
[1736329023460,2.24,197.25,197.24,243.00765398]
[1736329024875,2.24,197.26,197.24,252.8973448]
[1736329025184,2.24,197.28,197.26,23.776884]
[1736329025584,2.24,197.28,197.26,24.53696766]
[1736329025883,6.2296,197.37,197.26,243.76773764]
[1736329026185,2.24,197.36,197.26,243.00765398]
[1736329026384,2.24,197.36,197.28,23.776884]
[1736329027182,20.0,197.38,197.28,243.00765398]
[1736329027383,2.24,197.37,197.28,243.00765398]
[1736329028281,20.0,197.38,197.3,243.00765398]
[1736329028455,2.24,197.37,197.3,243.00765398]
[1736329030362,2.24,197.36,197.3,243.00765398]
[1736329031083,20.0,197.38,197.3,243.00765398]
[1736329031386,2.24,197.37,197.32,106.676884]
[1736329031687,2.24,197.37,197.32,82.9]
[1736329033086,2.24,197.37,197.33,23.776884]
[1736329033592,2.24,197.36,197.33,23.776884]
[1736329037784,22.24,197.36,197.32,82.9]
[1736329040270,22.24,197.36,197.33,23.776884]
[1736329044808,5.0661,197.39,197.33,23.776884]
[1736329045093,2.24,197.38,197.33,23.776884]
[1736329046165,4.63266984,197.46,197.33,23.776884]
[1736329046166,2.04365032,197.47,197.35,23.776884]
[1736329046370,7.87698227,197.54,197.42,15.43694035]
[1736329046573,7.87698227,197.54,197.43,39.21382435]
[1736329046882,2.26,197.53,197.43,40.78122435]
[1736329047277,20.0,197.51,197.43,40.78122435]
[1736329048476,20.0,197.51,197.43,25.344284]
[1736329049095,2.26,197.53,197.43,25.344284]
[1736329049887,20.0,197.51,197.43,108.244284]
[1736329051198,20.0,197.51,197.43,244.57505398]
[1736329051507,20.0,197.5,197.43,82.9]
[1736329051995,20.0,197.48,197.43,82.9]
[1736329052576,2.26,197.47,197.43,82.9]
[1736329053090,20.0,197.48,197.43,82.9]
[1736329053091,2.26,197.46,197.43,82.9]
[1736329054800,2.26,197.45,197.44,23.776884]
[1736329055097,2.26,197.45,197.39,39.21382435]
[1736329055288,2.26,197.45,197.41,23.776884]
[1736329056685,2.26,197.45,197.4,23.776884]
[1736329058788,2.26,197.45,197.41,0.75957928]
[1736329058990,2.26,197.45,197.42,243.00765398]
[1736329059397,2.26,197.45,197.44,23.776884]
[1736329059924,18.72931323,197.55,197.46,23.776884]
[1736329060099,5.0611,197.59,197.46,249.95802658]
[1736329060405,2.28,197.58,197.46,264.63559433]
[1736329060591,20.0,197.56,197.46,264.63559433]
[1736329061421,20.0,197.56,197.46,249.19865398]
[1736329061610,2.28,197.55,197.48,23.776884]
[1736329064233,2.28,197.55,197.46,225.42176998]
[1736329064607,20.0,197.53,197.46,225.42176998]
[1736329064799,20.0,197.53,197.47,23.776884]
[1736329065006,20.0,197.53,197.47,243.00765398]
[1736329066020,20.0,197.53,197.47,219.23076998]
[1736329066223,25.0627,197.53,197.47,219.23076998]
[1736329066809,20.0,197.49,197.47,82.9]
[1736329067129,2.28,197.48,197.47,13.81199763]
[1736329067429,2.28,197.48,197.41,23.776884]
[1736329067628,2.28,197.47,197.41,23.776884]
[1736329067822,22.28,197.47,197.41,23.776884]
[1736329070908,6.3346,197.52,197.41,203.3406524]
[1736329071115,2.28,197.51,197.41,203.3406524]
[1736329071515,2.28,197.5,197.41,203.3406524]
[1736329071927,2.28,197.49,197.43,23.776884]
[1736329073127,2.28,197.49,197.42,23.776884]
[1736329074540,20.0,197.57,197.44,23.776884]
[1736329074738,22.28,197.56,197.44,203.3406524]
[1736329075629,5.062,197.55,197.44,203.3406524]
[1736329075833,20.0,197.52,197.44,203.3406524]
[1736329076710,2.28,197.51,197.44,203.3406524]
[1736329078731,20.0,197.52,197.44,203.3406524]
[1736329078942,2.28,197.51,197.44,203.3406524]
[1736329079520,2.28,197.5,197.46,23.776884]
[1736329079919,2.28,197.5,197.46,203.3406524]
[1736329083642,22.28,197.5,197.46,203.3406524]
[1736329084022,2.28,197.5,197.46,179.5637684]
[1736329086729,5.0632,197.51,197.46,179.5637684]
[1736329086941,2.26,197.49,197.46,179.5637684]
[1736329087733,2.26,197.48,197.46,179.5637684]
[1736329089757,2.26,197.48,197.47,23.776884]
[1736329091955,2.26,197.48,197.47,203.3406524]
[1736329105371,20.0,197.56,197.47,203.3406524]
[1736329105543,5.0614,197.57,197.48,1.5824]
[1736329105748,2.24,197.56,197.49,23.776884]
[1736329106261,2.26,197.55,197.49,23.776884]
[1736329106447,20.0,197.54,197.49,203.3406524]
[1736329110359,2.24,197.53,197.49,203.3406524]
[1736329112278,2.24,197.53,197.49,179.5637684]
[1736329112566,5.0627,197.52,197.49,179.5637684]
[1736329113839,20.0,197.5,197.49,156.16319299]
[1736329114063,20.0,197.5,197.49,145.94379299]
[1736329114255,20.0,197.5,197.49,141.70459299]
[1736329116909,20.0,197.5,197.49,118.53559299]
[1736329117067,20.0,197.5,197.49,117.89189299]
[1736329117268,20.0,197.5,197.49,117.24819299]
[1736329118489,20.0,197.5,197.38,23.776884]
[1736329119268,2.34,197.49,197.38,23.776884]
[1736329120069,2.34,197.49,197.38,33.63937807]
[1736329121091,2.34,197.49,197.38,23.776884]
[1736329121477,7.4035,197.49,197.38,23.776884]
[1736329121994,7.4035,197.49,197.38,140.03593626]
[1736329128267,2.34,197.49,197.38,140.03593626]
[1736329128474,20.0,197.47,197.38,140.03593626]
[1736329134900,20.0,197.46,197.38,140.03593626]
[1736329144496,20.0,197.46,197.38,149.89843033]
[1736329145631,3.7973,197.51,197.38,149.89843033]
[1736329145940,3.7973,197.51,197.42,149.89843033]
[1736329146104,2.3,197.5,197.42,149.89843033]
[1736329146310,2.3,197.49,197.44,23.776884]
[1736329151739,2.3,197.49,197.44,140.03593626]
[1736329154128,20.0,197.52,197.44,140.03593626]
[1736329154331,2.28,197.51,197.44,140.03593626]
[1736329157221,2.28,197.51,197.44,116.25905226]
[1736329163321,3.7974,197.5,197.44,116.25905226]
[1736329164327,20.0,197.48,197.44,116.25905226]
[1736329164729,23.7979,197.48,197.44,116.25905226]
[1736329169336,20.0,197.47,197.44,116.25905226]
[1736329169945,3.7979,197.48,197.44,116.25905226]
[1736329170147,2.26,197.46,197.44,116.25905226]
[1736329170344,20.0,197.45,197.44,116.25905226]
[1736329176064,2.26,197.46,197.44,116.25905226]
[1736329176065,22.26,197.46,197.44,116.25905226]
[1736329177045,22.26,197.46,197.44,116.09885226]
[1736329177246,22.26,197.46,197.44,116.01875226]
[1736329178166,20.0,197.45,197.44,116.01875226]
[1736329179150,20.0,197.45,197.44,82.9]
[1736329179674,20.0,197.45,197.44,45.74184271]
[1736329179866,20.0,197.45,197.44,34.18029093]
[1736329180051,20.0,197.44,197.38,114.34154319]
[1736329180248,20.0,197.44,197.38,110.40714319]
[1736329180450,20.0,197.44,197.38,107.70084319]
[1736329181458,20.0,197.43,197.38,107.70084319]
[1736329182451,20.0,197.44,197.38,107.70084319]
[1736329182756,20.0,197.43,197.38,107.70084319]
[1736329184464,31.3964,197.43,197.38,105.13024319]
[1736329184654,31.3964,197.43,197.38,102.53604319]
[1736329186181,20.0,197.44,197.38,102.53604319]
[1736329186481,2.5325,197.43,197.38,102.53604319]
[1736329190495,2.5327,197.41,197.38,102.53604319]
[1736329191856,2.22,197.4,197.38,102.53604319]
[1736329192056,2.22,197.39,197.38,102.53604319]
[1736329197864,2.22,197.39,197.38,104.18954319]
[1736329205987,2.22,197.39,197.38,127.96642719]
[1736329208995,2.22,197.39,197.38,104.18954319]
[1736329216085,2.2,197.39,197.38,104.18954319]
[1736329219313,2.2,197.39,197.38,102.53604319]
[1736329219595,2.2,197.39,197.38,92.57494319]
[1736329219796,2.2,197.39,197.33,92.57494319]
[1736329219797,20.0,197.38,197.33,92.57494319]
[1736329220295,20.0,197.36,197.33,92.57494319]
[1736329220682,22.22,197.35,197.33,82.9]
[1736329222681,20.0,197.36,197.33,82.9]
[1736329222876,2.22,197.35,197.33,92.57494319]
[1736329223198,2.22,197.35,197.33,88.82204319]
[1736329223402,2.5336,197.34,197.33,67.80194319]
[1736329224402,20.0,197.33,197.28,67.80194319]
[1736329224897,25.0,197.33,197.24,67.80194319]
[1736329225490,20.0,197.31,197.24,67.80194319]
[1736329226991,1.2671,197.3,197.24,67.80194319]
[1736329229407,2.22,197.29,197.24,67.80194319]
[1736329231699,2.22,197.28,197.24,67.80194319]
[1736329233594,2.22,197.27,197.24,67.80194319]
[1736329233795,2.22,197.26,197.24,67.80194319]
[1736329234818,1.2669,197.32,197.24,67.80194319]
[1736329234819,2.22,197.25,197.24,67.80194319]
[1736329249628,1.2671,197.29,197.24,67.80194319]
[1736329249825,2.2,197.28,197.24,67.80194319]
[1736329253131,1.2672,197.27,197.24,67.80194319]
[1736329269055,2.18,197.26,197.24,67.80194319]
[1736329271738,22.5333,197.37,197.25,0.76028787]
[1736329271942,22.5333,197.37,197.25,68.56223106]
[1736329271943,2.18,197.36,197.25,68.56223106]
[1736329272237,2.18,197.36,197.26,6.461]
[1736329272431,22.18,197.36,197.26,6.461]
[1736329272631,2.18,197.36,197.26,6.461]
[1736329273362,21.2668,197.34,197.26,6.461]
[1736329274166,1.2668,197.34,197.26,6.461]
[1736329274463,2.18,197.33,197.28,69.30724319]
[1736329276664,1.2669,197.32,197.28,69.30724319]
[1736329276961,2.18,197.31,197.28,69.30724319]
[1736329282765,1.2671,197.3,197.28,69.30724319]
[1736329282960,1.2671,197.3,197.28,67.80194319]
[1736329286164,20.0,197.29,197.23,62.95124319]
[1736329287475,23.8016,197.28,197.23,62.95124319]
[1736329288865,33.8016,197.28,197.14,59.58864319]
[1736329289053,20.0,197.25,197.14,59.58864319]
[1736329289255,20.0,197.23,197.14,59.58864319]
[1736329290356,1.2676,197.22,197.14,59.58864319]
[1736329291979,1.2676,197.22,197.14,60.34926353]
[1736329292166,2.2,197.21,197.14,60.34926353]
[1736329293576,1.2676,197.22,197.14,60.34926353]
[1736329293784,2.2,197.2,197.14,60.34926353]
[1736329295383,1.2676,197.22,197.14,60.34926353]
[1736329295679,2.2,197.21,197.14,60.34926353]
[1736329300987,1.2677,197.2,197.14,60.34926353]
[1736329303384,21.2677,197.2,197.14,59.58864319]
[1736329308278,1.2679,197.17,197.14,59.58864319]
[1736329312392,20.0,197.2,197.14,59.58864319]
[1736329312593,2.2,197.19,197.14,59.58864319]
[1736329313098,16.8927082,197.35,197.15,83.36552719]
[1736329313099,2.2,197.18,197.15,83.36552719]
[1736329313280,1.2674,197.24,197.18,1.5798]
[1736329313483,2.2,197.23,197.19,0.76040575]
[1736329315804,11.15784121,197.32,197.2,83.36552719]
[1736329315805,1.267,197.31,197.2,83.36552719]
[1736329316098,2.2,197.3,197.22,83.36552719]
[1736329316302,2.2,197.3,197.23,0.76020306]
[1736329316680,2.2,197.29,197.25,1.5966]
[1736329316906,2.2,197.29,197.26,0.76014442]
[1736329318491,2.2,197.29,197.26,60.34878761]
[1736329319588,20.0,197.33,197.26,60.34878761]
[1736329319789,2.2,197.32,197.27,23.776884]
[1736329319993,20.0,197.33,197.28,60.34872595]
[1736329320213,2.2,197.32,197.28,60.34872595]
[1736329324821,3.4669,197.32,197.28,59.58864319]
[1736329327386,20.0,197.33,197.28,59.58864319]
[1736329327589,2.2,197.32,197.28,59.58864319]
[1736329328013,20.7586039,197.36,197.29,84.12559953]
[1736329328190,2.2,197.35,197.29,84.12559953]
[1736329329424,1.2665,197.4,197.29,84.12559953]
[1736329329718,2.2,197.39,197.33,23.776884]
[1736329329917,2.2,197.39,197.35,23.776884]
[1736329330113,2.2,197.39,197.37,23.776884]
[1736329330315,1.2662,197.44,197.38,0.7597363]
[1736329330629,2.2,197.43,197.37,83.36552719]
[1736329330926,2.2,197.43,197.38,0.75974734]
[1736329331134,2.2,197.43,197.37,83.36552719]
[1736329332429,1.2663,197.42,197.37,59.58864319]
[1736329332802,2.2,197.41,197.37,59.58864319]
[1736329333614,1.2664,197.4,197.37,59.58864319]
[1736329335620,2.2,197.39,197.37,59.58864319]
[1736329340426,2.2,197.39,197.38,0.75975991]
[1736329341329,2.2,197.39,197.37,59.58864319]
[1736329342907,2.2,197.39,197.38,0.75973022]
[1736329343321,2.2,197.39,197.38,60.34837341]
[1736329343722,2.2,197.39,197.38,59.58864319]
[1736329344532,2.2,197.39,197.38,61.15874319]
[1736329345040,2.2,197.39,197.38,84.93562719]
[1736329345270,2.2,197.39,197.38,85.69529783]
[1736329345526,1.2662,197.43,197.39,23.776884]
[1736329345713,2.2,197.42,197.38,61.15874319]
[1736329346838,1.2663,197.41,197.38,61.15874319]
[1736329347017,1.2663,197.41,197.38,59.58864319]
[1736329347327,20.0,197.39,197.38,53.61334319]
[1736329350712,20.0,197.39,197.38,53.2763]
[1736329350907,20.0,197.39,197.38,52.6471]
[1736329351134,20.0,197.39,197.38,52.0179]
[1736329351443,20.0,197.39,197.38,51.3887]
[1736329355544,2.2,197.39,197.38,51.3887]
[1736329356436,20.0,197.44,197.38,51.72574319]
[1736329356613,2.22,197.39,197.38,51.72574319]
[1736329359415,2.22,197.39,197.38,75.50262719]
[1736329359616,2.22,197.39,197.38,76.26228859]
[1736329361318,20.0,197.51,197.39,23.776884]
[1736329361526,2.22,197.5,197.41,23.776884]
[1736329361927,2.22,197.5,197.4,0.75952462]
[1736329362141,20.0,197.49,197.38,51.72574319]
[1736329362543,20.0,197.47,197.38,51.72574319]
[1736329362836,26.4457,197.45,197.38,47.1763]
[1736329363029,26.4457,197.45,197.38,43.2983]
[1736329363226,26.4457,197.45,197.38,41.3593]
[1736329364256,20.0,197.41,197.38,41.3593]
[1736329364555,2.22,197.4,197.38,41.3593]
[1736329364962,22.22,197.4,197.31,43.26444319]
[1736329365241,22.22,197.4,197.31,41.69634319]
[1736329365242,23.776884,197.39,197.31,41.69634319]
[1736329365447,20.0,197.37,197.31,41.69634319]
[1736329366152,20.0,197.37,197.26,43.28414319]
[1736329366331,20.0,197.35,197.26,43.28414319]
[1736329367054,20.0,197.34,197.26,43.28414319]
[1736329367233,2.22,197.33,197.26,43.28414319]
[1736329370528,7.36993143,197.41,197.27,0.76025015]
[1736329370725,2.22,197.39,197.27,42.45659334]
[1736329370927,20.0,197.37,197.27,42.45659334]
[1736329371650,20.0,197.38,197.27,42.45659334]
[1736329372152,2.22,197.39,197.27,42.45659334]
[1736329372546,2.22,197.39,197.28,23.776884]
[1736329372863,22.22,197.39,197.29,0.76001114]
[1736329373744,22.22,197.39,197.28,24.53693596]
[1736329374673,22.22,197.39,197.27,41.69634319]
[1736329376453,20.0,197.38,197.27,41.69634319]
[1736329377564,20.0,197.35,197.27,41.69634319]
[1736329378837,20.0,197.35,197.27,41.3593]
[1736329379040,20.0,197.31,197.27,41.3593]
[1736329379246,2.24,197.3,197.27,41.3593]
[1736329381673,2.24,197.29,197.27,41.69634319]
[1736329382376,2.24,197.28,197.27,41.69634319]
[1736329384247,20.0,197.35,197.27,41.69634319]
[1736329384471,2.24,197.34,197.27,41.69634319]
[1736329388578,2.24,197.33,197.27,41.69634319]
[1736329389460,20.0,197.36,197.27,41.69634319]
[1736329389675,2.24,197.35,197.28,42.45643492]
[1736329389887,2.24,197.34,197.29,47.88574319]
[1736329390056,2.24,197.33,197.29,47.88574319]
[1736329390584,2.24,197.32,197.29,47.88574319]
[1736329390753,2.24,197.32,197.29,48.64574847]
[1736329391672,2.24,197.32,197.29,47.88574319]
[1736329394478,20.0,197.41,197.31,43.24674319]
[1736329394659,2.24,197.4,197.32,0.75991414]
[1736329395582,2.24,197.39,197.32,0.75991414]
[1736329396768,2.24,197.38,197.35,23.776884]
[1736329396969,2.24,197.37,197.35,65.47322719]
[1736329398681,2.24,197.37,197.35,41.69634319]
[1736329400163,2.24,197.36,197.35,41.69634319]
[1736329404674,20.0,197.46,197.35,41.69634319]
[1736329404879,2.24,197.45,197.35,41.69634319]
[1736329405081,2.24,197.45,197.36,0.75978531]
[1736329405300,2.24,197.45,197.36,42.4561285]
[1736329407882,2.24,197.45,197.36,41.69634319]
[1736329414005,22.24,197.45,197.36,41.69634319]
[1736329416388,2.24,197.45,197.36,41.69634319]
[1736329417783,22.24,197.45,197.36,41.69634319]
[1736329418402,20.0,197.41,197.36,41.3593]
[1736329421605,22.06160553,197.41,197.36,41.3593]
[1736329422383,22.06160553,197.41,197.36,38.8027]
[1736329422606,20.0,197.39,197.3,1.584]
[1736329422789,2.24,197.38,197.3,31.74194319]
[1736329423111,20.0,197.37,197.3,31.74194319]
[1736329426587,2.24,197.38,197.3,31.74194319]
[1736329427620,20.0,197.37,197.3,31.74194319]
[1736329430189,24.25744171,197.38,197.3,31.74194319]
[1736329430889,20.0,197.37,197.3,31.74194319]
[1736329432112,24.25744171,197.38,197.3,31.74194319]
[1736329433001,20.0,197.37,197.3,31.74194319]
[1736329433201,20.0,197.37,197.3,31.4049]
[1736329434414,20.0,197.35,197.3,31.4049]
[1736329436323,20.0,197.37,197.3,31.4049]
[1736329437125,20.0,197.35,197.3,31.4049]
[1736329437508,20.0,197.37,197.3,31.4049]
[1736329438098,20.0,197.35,197.3,31.4049]
[1736329442409,20.0,197.35,197.3,28.5414]
[1736329443427,20.0,197.35,197.3,25.9667]
[1736329445404,20.0,197.35,197.3,27.4779]
[1736329446334,0.29935306,197.37,197.3,27.4779]
[1736329446519,2.2,197.36,197.3,27.4779]
[1736329446706,2.2,197.36,197.31,6.0961]
[1736329447124,20.0,197.4,197.31,32.39984319]
[1736329447313,2.22,197.39,197.31,32.39984319]
[1736329447826,20.0,197.4,197.31,33.1598753]
[1736329448134,0.29935306,197.41,197.31,33.1598753]
[1736329448135,20.29935306,197.41,197.31,33.1598753]
[1736329448531,2.22,197.4,197.31,33.1598753]
[1736329448713,2.22,197.4,197.31,32.39984319]
[1736329455541,2.22,197.4,197.31,33.15982322]
[1736329456418,2.22,197.4,197.31,32.39984319]
[1736329459128,22.22,197.4,197.31,32.0628]
[1736329459330,20.0,197.36,197.31,32.0628]
[1736329459543,20.0,197.36,197.31,23.0149]
[1736329459715,20.0,197.36,197.31,20.2452]
[1736329464720,22.0591724,197.36,197.31,20.2452]
[1736329470132,20.0,197.37,197.31,20.2452]
[1736329470344,2.2,197.36,197.31,20.2452]
[1736329470739,22.2,197.36,197.31,20.2452]
[1736329470934,1.68734972,197.39,197.31,20.2452]
[1736329471135,2.2,197.38,197.31,20.2452]
[1736329471348,20.0,197.36,197.32,6.0706]
[1736329471559,2.2,197.35,197.32,26.65284319]
[1736329471752,2.2,197.34,197.32,26.65284319]
[1736329473437,2.2,197.34,197.32,27.41282622]
[1736329478475,2.2,197.34,197.32,26.65284319]
[1736329478774,2.2,197.34,197.32,20.58224319]
[1736329479066,2.2,197.34,197.32,15.42242041]
[1736329486975,2.2,197.34,197.32,151.82242041]
[1736329490057,0.29935306,197.39,197.33,0.75992573]
[1736329490356,2.2,197.38,197.33,0.75992573]
[1736329490569,2.2,197.38,197.32,151.82242041]
[1736329507870,0.29935306,197.39,197.32,151.82242041]
[1736329508066,2.18,197.38,197.34,6.0814]
[1736329508270,2.18,197.37,197.34,157.90382041]
[1736329508470,20.0,197.41,197.35,1.5385]
[1736329508970,2.18,197.4,197.35,1.5385]
[1736329509684,22.18,197.4,197.35,1.5385]
[1736329510584,2.18,197.39,197.35,1.5385]
[1736329513171,1.38799666,197.43,197.35,154.12080425]
[1736329513372,2.18,197.42,197.36,175.59930441]
[1736329513588,2.00387038,197.46,197.37,152.58212803]
[1736329513905,2.18,197.45,197.37,151.82242041]
[1736329514085,2.18,197.44,197.38,0.75970742]
[1736329515474,2.18,197.44,197.37,151.82242041]
[1736329519796,20.0,197.43,197.37,151.82242041]
[1736329520101,20.0,197.43,197.37,15.42242041]
[1736329520300,20.0,197.41,197.35,1.5385]
[1736329520601,20.0,197.4,197.35,1.5385]
[1736329522385,1.38799666,197.42,197.35,1.5385]
[1736329522587,2.18,197.41,197.35,1.5385]
[1736329523592,0.29941544,197.43,197.35,154.1207826]
[1736329523805,2.18,197.4,197.35,153.36092041]
[1736329524110,2.2,197.39,197.36,152.58217856]
[1736329524301,2.2,197.38,197.36,151.82242041]
[1736329526988,2.2,197.38,197.37,0.75976508]
[1736329527205,2.2,197.38,197.37,152.58218549]
[1736329527504,2.2,197.38,197.37,175.59930441]
[1736329529500,2.2,197.38,197.37,151.82242041]
[1736329533907,2.2,197.38,197.37,15.42242041]
[1736329535013,2.2,197.38,197.34,15.42242041]
[1736329537216,2.18,197.37,197.34,15.42242041]
[1736329540520,2.18,197.36,197.34,151.82242041]
[1736329540822,2.18,197.35,197.34,151.82242041]
[1736329543919,2.18,197.35,197.34,15.42242041]
[1736329546797,2.18,197.35,197.29,15.42242041]
[1736329556022,2.18,197.34,197.29,151.82242041]
[1736329556241,9.38343353,197.45,197.3,152.58251033]
[1736329556451,2.18,197.4,197.31,0.75995536]
[1736329557538,20.0,197.39,197.31,0.75995536]
[1736329558208,2.18,197.4,197.31,0.75995536]
[1736329558405,2.18,197.39,197.31,6.99155536]
[1736329562030,2.18,197.39,197.31,158.81397577]
[1736329562208,2.18,197.39,197.31,158.05402041]
[1736329562408,2.18,197.38,197.31,158.05402041]
[1736329562627,2.18,197.38,197.32,0.75993593]
[1736329564625,2.18,197.38,197.33,1.6564]
[1736329566632,2.18,197.38,197.34,152.58231026]
[1736329566938,2.01682524,197.44,197.34,151.82242041]
[1736329567114,2.18,197.43,197.34,151.82242041]
[1736329567821,2.18,197.43,197.35,0.75981014]
[1736329568022,2.18,197.42,197.35,0.75981014]
[1736329568330,22.18,197.42,197.35,0.75981014]
[1736329568521,22.18,197.42,197.35,152.58223055]
[1736329568721,22.18,197.42,197.35,151.82242041]
[1736329574934,20.0,197.42,197.35,151.82242041]
[1736329575142,2.18,197.41,197.35,151.82242041]
[1736329578442,2.18,197.4,197.36,152.58222386]
[1736329578739,2.18,197.4,197.36,151.82242041]
[1736329582319,2.04630262,197.45,197.36,151.82242041]
[1736329582518,2.18,197.44,197.36,151.82242041]
[1736329586921,4.22925773,197.44,197.36,151.82242041]
[1736329587641,0.29941544,197.47,197.36,151.82242041]
[1736329587839,1.06212277,197.49,197.38,153.43602041]
[1736329588142,2.18,197.48,197.39,0.75962425]
[1736329589845,20.0,197.46,197.39,0.75962425]
[1736329590446,1.06212277,197.49,197.39,152.58204466]
[1736329590626,20.0,197.47,197.39,151.82242041]
[1736329590821,20.0,197.47,197.38,1.6136]
[1736329590822,2.18,197.46,197.4,175.59930441]
[1736329591023,2.18,197.45,197.42,153.48212041]
[1736329591244,2.18,197.45,197.43,0.75950443]
[1736329594047,2.18,197.45,197.42,153.48212041]
[1736329595931,2.18,197.45,197.42,17.08212041]
[1736329596546,2.18,197.45,197.42,15.42242041]